[Event "Czech Extraliga 2023-24"]
[Site "Czech Republic"]
[Date "2024.02.11"]
[Round "8.2"]
[White "Samunenkov, Ihor"]
[Black "Hracek, Zbynek"]
[Result "1/2-1/2"]
[ECO "A32"]
[WhiteElo "2533"]
[BlackElo "2549"]
[Annotator "TA"]
[PlyCount "34"]
[EventDate "2023.10.14"]
[EventCountry "CZE"]
[SourceTitle "playchess.com"]
[Source "ChessBase"]
[SourceQuality "1"]
[TimeControl "40/5400+30:1800+30"]

{[%evp 20,34,22,10,12,10,18,12,11,19,12,3,9,0,0,0,9]} 1. d4 {[%emt 0:00:08]} Nf6 {[%emt 0:00:07]} 2. g3 {[%emt 0:00:10]} d5 {[%emt 0:00:20]} 3. Nf3 {[%emt 0:00:12][%cal Bg1f3,Bf3d4,Bd4b3,Bb3d2,Bd2c4][%mdl 32]} c5 {[%emt 0:02:13]} 4. Bg2 {[%emt 0:00:13]} cxd4 {[%emt 0:01:01]} 5. O-O {[%emt 0:00:10]} e6 {[%emt 0:04:25]} 6. Nxd4 {[%emt 0:00:19]} Bc5 {[%emt 0:00:29]} 7. c4 {[%emt 0:09:15]} O-O {[%emt 0:00:07]} 8. cxd5 {[%emt 0:12:44]} Nxd5 {[%emt 0:03:13]} 9. Nb3 {[%emt 0:02:58]} Bb6 {[%emt 0:00:19]} 10. Bd2 {[%emt 0:05:49]} Nc6 {[%emt 0:01:11]} 11. Nc3 {[%emt 0:00:53] The position is equal.} Nxc3 {[%emt 0:06:44]} 12. Bxc3 {[%emt 0:00:16]} Qe7 {[%emt 0:00:23]} 13. Nd2 {[%emt 0:10:09]} Rd8 {[%emt 0:12:56]} 14. Qc2 {[%emt 0:11:10]} Bd7 {[%emt 0:14:55]} 15. Nc4 {[%emt 0:05:56]} Bd4 {[%emt 0:01:00]} 16. e3 {[%emt 0:05:09]} Bxc3 {[%emt 0:00:21]} 17. Qxc3 {[%emt 0:00:09]} Rac8 {[%emt 0:03:55] Not much happened in this game.   Weighted Error Value: White=0.05 (flawless) /Black=0.02 (flawless) .  OK:         	White=2     	Black=3} 1/2-1/2

[Event "Czech Extraliga 2023-24"]
[Site "Czech Republic"]
[Date "2024.02.11"]
[Round "8.2"]
[White "Baidetskyi, Valentin"]
[Black "Nasuta, Grzegorz"]
[Result "1/2-1/2"]
[ECO "D11"]
[WhiteElo "2499"]
[BlackElo "2563"]
[Annotator "TA"]
[PlyCount "28"]
[EventDate "2023.10.14"]
[EventCountry "CZE"]
[SourceTitle "playchess.com"]
[Source "ChessBase"]
[SourceQuality "1"]
[TimeControl "40/5400+30:1800+30"]

{[%evp 17,28,20,12,23,17,31,25,24,19,22,20,0,16]} 1. Nf3 {[%emt 0:00:02]} d5 {[%emt 0:00:08]} 2. g3 {[%emt 0:00:04]} Bg4 {[%emt 0:01:10]} 3. Bg2 {[%emt 0:00:10]} e6 {[%emt 0:00:07]} 4. h3 {[%emt 0:00:09]} Bh5 {[%emt 0:00:43]} 5. d4 {[%emt 0:00:45]} Nf6 {[%emt 0:00:15]} 6. c4 {[%emt 0:00:15]} c6 {[%emt 0:00:32]} 7. O-O {[%emt 0:00:10]} Nbd7 {[%emt 0:01:03]} 8. Qb3 {[%emt 0:00:40]} Qb6 {[%emt 0:00:44]} 9. Nc3 {[%emt 0:00:37]} Be7 {[%emt 0:01:02]} 10. Nh4 {[%emt 0:01:56]} O-O {[%emt 0:09:37]} 11. g4 {[%emt 0:03:45]} Bg6 {[%emt 0:01:11]} (11... Qxd4 $2 {too greedy.} 12. Nf3 (12. Qxb7 Qxc4 13. Rd1 a5 $17) 12... Qxc4 13. Qxc4 (13. gxh5 Qxb3 14. axb3 Nxh5 $14) 13... dxc4 14. gxh5 $18) 12. Nxg6 {[%emt 0:00:07]} hxg6 {[%emt 0:00:10]} 13. Rd1 {[%emt 0:00:03]} Rfd8 {[%emt 0:12:30]} 14. g5 {[%emt 0:32:25]} Nh5 {[%emt 0:16:28] Not much happened in this game.   Weighted Error Value: White=0.04 (flawless) /Black=0.00 (flawless) .  OK:         	White=3     	Black=1} 1/2-1/2

[Event "Czech Extraliga 2023-24"]
[Site "Czech Republic"]
[Date "2024.02.11"]
[Round "8.2"]
[White "Sahidi, Samir"]
[Black "Stocek, Jiri"]
[Result "1-0"]
[ECO "E10"]
[WhiteElo "2478"]
[BlackElo "2549"]
[Annotator "RC"]
[PlyCount "133"]
[EventDate "2023.10.14"]
[EventCountry "CZE"]
[SourceTitle "playchess.com"]
[Source "ChessBase"]
[SourceQuality "1"]
[TimeControl "40/5400+30:1800+30"]

1. d4 {[%emt 0:01:04]} Nf6 {[%emt 0:00:15]} 2. c4 {[%emt 0:00:43]} e6 {[%emt 0:00:27]} 3. Nf3 {[%emt 0:00:14]} c5 {[%emt 0:00:15]} 4. d5 {[%emt 0:02:31]} b5 {[%emt 0:00:28]} 5. dxe6 {[%emt 0:01:56]} fxe6 {[%emt 0:00:07]} 6. cxb5 {[%emt 0:00:46]} a6 {[%emt 0:00:42]} 7. bxa6 {[%emt 0:02:58]} Bxa6 {[%emt 0:06:49]} 8. g3 {[%emt 0:01:56]} Nc6 {[%emt 0:00:13]} 9. Bg2 {[%emt 0:00:15]} Be7 {[%emt 0:00:28]} 10. O-O {[%emt 0:03:09]} O-O {[%emt 0:00:33]} 11. Re1 {[%emt 0:06:57]} Qe8 {[%emt 0:06:02]} 12. Nc3 {[%emt 0:05:52]} h6 {[%emt 0:09:51]} 13. b3 {[%emt 0:14:37]} Rd8 {[%emt 0:12:07]} 14. Ba3 {[%emt 0:09:46]} d5 {[%emt 0:01:55]} 15. Na4 {[%emt 0:01:17]} Ne4 {[%emt 0:08:40]} 16. Rc1 {[%emt 0:01:03]} c4 {[%emt 0:11:17]} 17. Bxe7 {[%emt 0:00:39]} Qxe7 {[%emt 0:00:45]} 18. bxc4 {[%emt 0:04:04]} Bxc4 {[%emt 0:00:35]} 19. Nb2 {[%emt 0:02:15]} Qa7 {[%emt 0:03:57]} 20. Rf1 {[%emt 0:00:35]} Qxa2 {[%emt 0:04:49]} 21. Nxc4 {[%emt 0:03:04]} dxc4 {[%emt 0:00:16]} 22. Qc2 {[%emt 0:00:08]} Qxc2 {[%emt 0:00:30]} 23. Rxc2 {[%emt 0:00:05]} Nd6 {[%emt 0:06:04]} 24. Rd1 {[%emt 0:03:44]} Rfe8 {[%emt 0:07:11]} 25. Bf1 {[%emt 0:04:25]} Nb4 {[%emt 0:01:54]} 26. Rb2 {[%emt 0:01:09]} Nd5 {[%emt 0:00:22]} 27. e3 {[%emt 0:14:18]} c3 {[%emt 0:02:43]} 28. Rc2 {[%emt 0:00:17]} Rb8 {[%emt 0:00:21]} 29. Bd3 {[%emt 0:05:15]} Rec8 {[%emt 0:00:48]} 30. Rcc1 {[%emt 0:05:08]} Nb5 {[%emt 0:05:42]} 31. Bg6 {[%emt 0:01:44]} Na3 {[%emt 0:01:17]} 32. Nd4 {[%emt 0:00:53]} Ne7 {[%emt 0:04:55]} 33. Be4 {[%emt 0:00:56]} Kf7 {[%emt 0:01:08]} 34. Kg2 {[%emt 0:02:50]} Nb5 {[%emt 0:01:54]} 35. Ne2 {[%emt 0:00:47]} Rc5 {[%emt 0:01:42]} 36. Bd3 {[%emt 0:00:13]} Nd5 {[%emt 0:00:25]} 37. e4 {[%emt 0:00:46]} Nb4 {[%emt 0:00:06]} 38. Bxb5 {[%emt 0:00:20]} Rbxb5 {[%emt 0:00:48]} 39. Rxc3 {[%emt 0:00:29]} Rxc3 {[%emt 0:00:12]} 40. Nxc3 {[%emt 0:00:05]} Rc5 {[%emt 0:00:05]} 41. Ne2 {[%emt 0:30:31]} g5 {[%emt 0:31:21]} 42. Rd7+ {[%emt 0:00:00]} Kf6 {[%emt 0:00:00]} 43. f4 {[%emt 0:00:00]} g4 {[%emt 0:00:00]} 44. Nd4 {[%emt 0:00:00]} e5 {[%emt 0:00:00]} 45. Rd6+ {[%emt 0:00:00]} Kf7 {[%emt 0:00:00]} 46. Nf5 {[%emt 0:00:00]} h5 {[%emt 0:00:00]} 47. Kf2 {[%emt 0:00:00]} Rc2+ {[%emt 0:00:00]} 48. Ke3 {[%emt 0:00:00]} Rc3+ {[%emt 0:00:00]} 49. Ke2 {[%emt 0:00:00]} Rc2+ {[%emt 0:00:00]} 50. Kd1 {[%emt 0:00:00]} exf4 {[%emt 0:00:00]} 51. gxf4 {[%emt 0:00:00]} Rxh2 {[%emt 0:00:00]} 52. e5 {[%emt 0:00:00]} Na2 {[%emt 0:00:00]} 53. Rc6 {[%emt 0:00:21]} Nb4 {[%emt 0:00:00]} 54. Rf6+ {[%emt 0:00:56]} Ke8 {[%emt 0:00:00]} 55. e6 {[%emt 0:01:41]} Nd5 {[%emt 0:00:00]} 56. Rh6 {[%emt 0:02:30]} Kd8 {[%emt 0:00:00]} 57. Ke1 {[%emt 0:01:31]} g3 {[%emt 0:00:33]} 58. Rh8+ {[%emt 0:00:35]} Kc7 {[%emt 0:00:05]} 59. Nxg3 {[%emt 0:00:54]} Kd6 {[%emt 0:03:02]} 60. f5 {[%emt 0:00:16]} Nf6 {[%emt 0:01:20]} 61. Rf8 {[%emt 0:00:38]} Rg2 {[%emt 0:01:47]} 62. Rxf6 {[%emt 0:01:31]} Rxg3 {[%emt 0:00:04]} 63. Kf2 {[%emt 0:00:30]} h4 {[%emt 0:00:22]} 64. Rf7 {[%emt 0:00:17]} Rg5 {[%emt 0:01:42]} 65. e7 {[%emt 0:00:29]} Kd7 {[%emt 0:00:10]} 66. f6 {[%emt 0:00:09]} h3 {[%emt 0:01:00]} 67. Rf8 {[%emt 0:00:07]} 1-0

[Event "Czech Extraliga 2023-24"]
[Site "Czech Republic"]
[Date "2024.02.11"]
[Round "8.2"]
[White "Vlasak, Lukas"]
[Black "L'Ami, Erwin"]
[Result "1/2-1/2"]
[ECO "E11"]
[WhiteElo "2434"]
[BlackElo "2627"]
[Annotator "RC"]
[PlyCount "197"]
[EventDate "2023.10.14"]
[EventCountry "CZE"]
[SourceTitle "playchess.com"]
[Source "ChessBase"]
[SourceQuality "1"]
[TimeControl "40/5400+30:1800+30"]

1. d4 {[%emt 0:00:07]} Nf6 {[%emt 0:00:25]} 2. Nf3 {[%emt 0:00:27]} e6 {[%emt 0:00:32]} 3. c4 {[%emt 0:00:27]} d5 {[%emt 0:00:11]} 4. g3 {[%emt 0:00:18]} Bb4+ {[%emt 0:00:23]} 5. Bd2 {[%emt 0:00:39]} Be7 {[%emt 0:00:15]} 6. Bg2 {[%emt 0:00:17]} c6 {[%emt 0:00:27]} 7. O-O {[%emt 0:02:48]} Nbd7 {[%emt 0:01:02]} 8. Qc2 {[%emt 0:01:28]} b6 {[%emt 0:00:34]} 9. Bf4 {[%emt 0:03:05]} Bb7 {[%emt 0:00:35]} 10. cxd5 {[%emt 0:04:43]} cxd5 {[%emt 0:04:39]} 11. Rc1 {[%emt 0:02:06]} O-O {[%emt 0:02:17]} 12. Nc3 {[%emt 0:08:51]} Rc8 {[%emt 0:02:28]} 13. Qb3 {[%emt 0:03:11]} a6 {[%emt 0:02:02]} 14. Ne5 {[%emt 0:04:48]} Nxe5 {[%emt 0:03:58]} 15. Bxe5 {[%emt 0:01:39]} Nd7 {[%emt 0:02:27]} 16. Bf4 {[%emt 0:05:02]} b5 {[%emt 0:07:26]} 17. e4 {[%emt 0:20:34]} dxe4 {[%emt 0:04:45]} 18. Nxe4 {[%emt 0:00:32]} Bd5 {[%emt 0:02:42]} 19. Qe3 {[%emt 0:01:18]} Qb6 {[%emt 0:05:35]} 20. Nc3 {[%emt 0:08:40]} Bxg2 {[%emt 0:02:12]} 21. Kxg2 {[%emt 0:00:12]} Nf6 {[%emt 0:02:04]} 22. a3 {[%emt 0:04:38]} Rc4 {[%emt 0:04:10]} 23. Be5 {[%emt 0:03:07]} Rd8 {[%emt 0:03:28]} 24. Qf3 {[%emt 0:01:40]} Nd5 {[%emt 0:06:32]} 25. Nxd5 {[%emt 0:02:03]} Rxd5 {[%emt 0:00:18]} 26. b3 {[%emt 0:00:32]} Rc6 {[%emt 0:00:42]} 27. a4 {[%emt 0:00:52]} f6 {[%emt 0:07:01]} 28. Rxc6 {[%emt 0:05:18]} Qxc6 {[%emt 0:00:08]} 29. axb5 {[%emt 0:00:32]} Qxb5 {[%emt 0:02:51]} 30. Bf4 {[%emt 0:00:33]} Rxd4 {[%emt 0:01:27]} 31. Qa8+ {[%emt 0:00:35]} Kf7 {[%emt 0:01:11]} 32. Qxa6 {[%emt 0:00:31]} Qxb3 {[%emt 0:01:47]} 33. Be3 {[%emt 0:01:33]} Qd5+ {[%emt 0:06:47]} 34. Kg1 {[%emt 0:01:21]} Rd3 {[%emt 0:00:15]} 35. Qa4 {[%emt 0:02:42]} g5 {[%emt 0:07:01]} 36. Qg4 {[%emt 0:04:31]} Kg6 {[%emt 0:00:49]} 37. h4 {[%emt 0:01:06]} h6 {[%emt 0:09:23]} 38. Qa4 {[%emt 0:00:59]} Kf7 {[%emt 0:02:15]} 39. Qg4 {[%emt 0:01:51]} Kg6 {[%emt 0:01:45]} 40. Qa4 {[%emt 0:00:10]} Qd7 {[%emt 0:02:19]} 41. hxg5 {[%emt 0:09:50]} Qxa4 {[%emt 0:04:11]} 42. Rxa4 {[%emt 0:00:10]} hxg5 {[%emt 0:00:06]} 43. g4 {[%emt 0:02:09]} f5 {[%emt 0:01:46]} 44. gxf5+ {[%emt 0:00:09]} exf5 {[%emt 0:00:06]} 45. Kg2 {[%emt 0:00:31]} Bf6 {[%emt 0:04:29]} 46. Rb4 {[%emt 0:01:29]} Rd5 {[%emt 0:03:40]} 47. Rc4 {[%emt 0:01:02]} Be7 {[%emt 0:04:17]} 48. Rc7 {[%emt 0:05:23]} Re5 {[%emt 0:01:04]} 49. Rc4 {[%emt 0:00:53]} Re6 {[%emt 0:01:31]} 50. Ra4 {[%emt 0:01:13]} Rc6 {[%emt 0:00:15]} 51. Ra7 {[%emt 0:02:58]} Bd6 {[%emt 0:03:38]} 52. Rb7 {[%emt 0:00:38]} Bc7 {[%emt 0:00:21]} 53. Rb5 {[%emt 0:00:30]} Ra6 {[%emt 0:01:24]} 54. Rb7 {[%emt 0:00:28]} Rc6 {[%emt 0:00:44]} 55. Rb5 {[%emt 0:00:08]} Bd8 {[%emt 0:00:16]} 56. Rb8 {[%emt 0:01:12]} Rd6 {[%emt 0:00:22]} 57. Rb4 {[%emt 0:00:11]} Bf6 {[%emt 0:05:47]} 58. Ra4 {[%emt 0:01:27]} Rd7 {[%emt 0:02:19]} 59. Rc4 {[%emt 0:00:45]} f4 {[%emt 0:01:03]} 60. Bxf4 {[%emt 0:00:07]} gxf4 {[%emt 0:00:06]} 61. Rxf4 {[%emt 0:00:30]} Rd2 {[%emt 0:00:11]} 62. Rf3 {[%emt 0:00:44]} Be5 {[%emt 0:00:25]} 63. Kf1 {[%emt 0:01:15]} Kg5 {[%emt 0:00:07]} 64. Kg2 {[%emt 0:00:10]} Bf4 {[%emt 0:00:12]} 65. Ra3 {[%emt 0:00:36]} Kf5 {[%emt 0:00:22]} 66. Rb3 {[%emt 0:01:56]} Be5 {[%emt 0:00:28]} 67. Rf3+ {[%emt 0:01:03]} Ke4 {[%emt 0:00:19]} 68. Re3+ {[%emt 0:00:18]} Kd5 {[%emt 0:00:07]} 69. Rf3 {[%emt 0:00:18]} Ra2 {[%emt 0:00:07]} 70. Kf1 {[%emt 0:00:43]} Ra8 {[%emt 0:00:34]} 71. Rd3+ {[%emt 0:04:24]} Kc4 {[%emt 0:00:47]} 72. Rf3 {[%emt 0:01:25]} Rg8 {[%emt 0:00:10]} 73. Ke2 {[%emt 0:01:03]} Rg1 {[%emt 0:00:21]} 74. Rf8 {[%emt 0:00:33]} Bd6 {[%emt 0:00:56]} 75. Rf7 {[%emt 0:00:19]} Kd5 {[%emt 0:01:02]} 76. Rf3 {[%emt 0:00:24]} Be5 {[%emt 0:01:45]} 77. Rd3+ {[%emt 0:01:30]} Bd4 {[%emt 0:00:07]} 78. Rg3 {[%emt 0:00:24]} Ra1 {[%emt 0:00:28]} 79. Rg5+ {[%emt 0:00:31]} Ke4 {[%emt 0:00:14]} 80. Rg4+ {[%emt 0:00:05]} Ke5 {[%emt 0:00:05]} 81. Rg2 {[%emt 0:02:29]} Kf4 {[%emt 0:01:34]} 82. Rh2 {[%emt 0:00:22]} Bb6 {[%emt 0:00:32]} 83. Rh4+ {[%emt 0:00:56]} Kg5 {[%emt 0:00:14]} 84. Rh2 {[%emt 0:00:09]} Kg4 {[%emt 0:01:51]} 85. Rg2+ {[%emt 0:00:07]} Kf4 {[%emt 0:00:42]} 86. Rh2 {[%emt 0:00:08]} Rb1 {[%emt 0:02:01]} 87. Rh4+ {[%emt 0:00:15]} Kg5 {[%emt 0:00:05]} 88. Rh2 {[%emt 0:00:03]} Kg4 {[%emt 0:00:35]} 89. Rg2+ {[%emt 0:00:04]} Kf4 {[%emt 0:00:05]} 90. Rh2 {[%emt 0:00:05]} Bd8 {[%emt 0:00:55]} 91. Rh7 {[%emt 0:01:01]} Bf6 {[%emt 0:00:51]} 92. Rf7 {[%emt 0:01:06]} Rb6 {[%emt 0:00:09]} 93. Rf8 {[%emt 0:00:17]} Re6+ {[%emt 0:00:59]} 94. Kf1 {[%emt 0:00:42]} Kf3 {[%emt 0:00:06]} 95. Rg8 {[%emt 0:00:27]} Be5 {[%emt 0:00:41]} 96. Rf8+ {[%emt 0:00:53]} Bf4 {[%emt 0:01:04]} 97. Rh8 {[%emt 0:00:34]} Ra6 {[%emt 0:01:32]} 98. Rh3+ {[%emt 0:00:06]} Ke4 {[%emt 0:00:26]} 99. Kg2 {[%emt 0:00:31]} 1/2-1/2

[Event "Czech Extraliga 2023-24"]
[Site "Czech Republic"]
[Date "2024.02.11"]
[Round "8.3"]
[White "Movsesian, Sergei"]
[Black "Plat, Vojtech"]
[Result "1/2-1/2"]
[ECO "B06"]
[WhiteElo "2604"]
[BlackElo "2516"]
[Annotator "RC"]
[PlyCount "35"]
[EventDate "2023.10.14"]
[EventCountry "CZE"]
[SourceTitle "playchess.com"]
[Source "ChessBase"]
[SourceQuality "1"]
[TimeControl "40/5400+30:1800+30"]

1. e4 {[%emt 0:00:03]} e5 {[%emt 0:00:10]} 2. Nf3 {[%emt 0:00:07]} d6 {[%emt 0:00:04]} 3. d4 {[%emt 0:00:14]} exd4 {[%emt 0:00:04]} 4. Nxd4 {[%emt 0:00:05]} Nf6 {[%emt 0:00:05]} 5. Nc3 {[%emt 0:00:06]} g6 {[%emt 0:00:05]} 6. g3 {[%emt 0:01:52]} Bg7 {[%emt 0:00:19]} 7. Bg2 {[%emt 0:00:05]} O-O {[%emt 0:00:17]} 8. O-O {[%emt 0:00:05]} Re8 {[%emt 0:03:25]} 9. h3 {[%emt 0:03:19]} Nc6 {[%emt 0:01:53]} 10. Nde2 {[%emt 0:04:43]} Be6 {[%emt 0:02:04]} 11. Re1 {[%emt 0:02:46]} a5 {[%emt 0:05:39]} 12. a4 {[%emt 0:02:35]} Bc4 {[%emt 0:04:45]} 13. Bg5 {[%emt 0:03:30]} h6 {[%emt 0:06:15]} 14. Be3 {[%emt 0:00:32]} Nb4 {[%emt 0:05:27]} 15. Bd4 {[%emt 0:21:48]} Nc6 {[%emt 0:00:35]} 16. Be3 {[%emt 0:00:30]} Nb4 {[%emt 0:00:04]} 17. Bd4 {[%emt 0:04:07]} Nc6 {[%emt 0:00:10]} 18. Be3 {[%emt 0:00:27]} 1/2-1/2

[Event "Czech Extraliga 2023-24"]
[Site "Czech Republic"]
[Date "2024.02.11"]
[Round "8.3"]
[White "Kempinski, Robert"]
[Black "Hrbek, Stepan"]
[Result "1-0"]
[ECO "A17"]
[WhiteElo "2547"]
[BlackElo "2426"]
[Annotator "RC"]
[PlyCount "79"]
[EventDate "2023.10.14"]
[EventCountry "CZE"]
[SourceTitle "playchess.com"]
[Source "ChessBase"]
[SourceQuality "1"]
[TimeControl "40/5400+30:1800+30"]

1. Nf3 {[%emt 0:00:07]} Nf6 {[%emt 0:00:40]} 2. c4 {[%emt 0:00:41]} e6 {[%emt 0:00:13]} 3. Nc3 {[%emt 0:01:21]} Bb4 {[%emt 0:03:30]} 4. Qc2 {[%emt 0:02:16]} O-O {[%emt 0:00:43]} 5. a3 {[%emt 0:01:56]} Bxc3 {[%emt 0:00:24]} 6. Qxc3 {[%emt 0:00:13]} b6 {[%emt 0:00:11]} 7. g3 {[%emt 0:02:35]} Bb7 {[%emt 0:00:46]} 8. Bg2 {[%emt 0:00:10]} c5 {[%emt 0:07:19]} 9. b4 {[%emt 0:01:24]} d6 {[%emt 0:04:46]} 10. O-O {[%emt 0:04:39]} Nbd7 {[%emt 0:01:24]} 11. Bb2 {[%emt 0:05:48]} Rc8 {[%emt 0:01:32]} 12. d3 {[%emt 0:01:01]} Qe7 {[%emt 0:08:14]} 13. e4 {[%emt 0:11:20]} a6 {[%emt 0:11:29]} 14. Rab1 {[%emt 0:17:04]} b5 {[%emt 0:04:38]} 15. cxb5 {[%emt 0:02:37]} axb5 {[%emt 0:01:51]} 16. bxc5 {[%emt 0:00:23]} dxc5 {[%emt 0:04:29]} 17. Nd2 {[%emt 0:06:44]} Rfd8 {[%emt 0:15:29]} 18. Rfd1 {[%emt 0:04:20]} Ba6 {[%emt 0:05:57]} 19. Ba1 {[%emt 0:04:02]} Nb8 {[%emt 0:04:33]} 20. Nf3 {[%emt 0:05:57]} Nc6 {[%emt 0:04:25]} 21. Ne5 {[%emt 0:05:19]} Nd4 {[%emt 0:03:04]} 22. Qa5 {[%emt 0:00:39]} Qc7 {[%emt 0:04:44]} 23. Qxc7 {[%emt 0:06:04]} Rxc7 {[%emt 0:00:12]} 24. Bxd4 {[%emt 0:03:22]} Rxd4 {[%emt 0:01:13]} 25. Rdc1 {[%emt 0:00:36]} Nd7 {[%emt 0:02:56]} 26. Nxd7 {[%emt 0:00:52]} Rdxd7 {[%emt 0:00:05]} 27. Rc3 {[%emt 0:02:07]} f6 {[%emt 0:06:05]} 28. Bf1 {[%emt 0:04:13]} Rc8 {[%emt 0:01:48]} 29. Rbc1 {[%emt 0:00:26]} Rdc7 {[%emt 0:00:20]} 30. Bh3 {[%emt 0:00:11]} Kf7 {[%emt 0:01:34]} 31. d4 {[%emt 0:00:06]} c4 {[%emt 0:00:02]} 32. d5 {[%emt 0:00:05]} Ke7 {[%emt 0:00:45]} 33. Bxe6 {[%emt 0:00:19]} Rb8 {[%emt 0:00:03]} 34. Rd1 {[%emt 0:02:07]} Kd6 {[%emt 0:00:09]} 35. f4 {[%emt 0:00:05]} Ra7 {[%emt 0:01:43]} 36. Re3 {[%emt 0:00:39]} Kc5 {[%emt 0:00:37]} 37. d6 {[%emt 0:00:42]} Rd8 {[%emt 0:00:26]} 38. e5 {[%emt 0:00:29]} fxe5 {[%emt 0:00:08]} 39. fxe5 {[%emt 0:00:39]} b4 {[%emt 0:00:25]} 40. Rd5+ {[%emt 0:00:22]} 1-0

[Event "Czech Extraliga 2023-24"]
[Site "Czech Republic"]
[Date "2024.02.11"]
[Round "8.3"]
[White "Heberla, Bartlomiej"]
[Black "Simacek, Pavel"]
[Result "1-0"]
[ECO "B29"]
[WhiteElo "2546"]
[BlackElo "2456"]
[Annotator "TA"]
[PlyCount "51"]
[EventDate "2023.10.14"]
[EventCountry "CZE"]
[SourceTitle "playchess.com"]
[Source "ChessBase"]
[SourceQuality "1"]
[TimeControl "40/5400+30:1800+30"]

{[%evp 10,51,34,35,29,23,17,31,33,24,25,18,30,14,21,0,30,45,30,33,47,53,55,68,78,15,78,70,220,227,197,214,210,227,361,330,365,359,373,366,499,493,598,577]} 1. e4 {[%emt 0:02:29][%cal Be2e4,Be4e5][%mdl 32]} c5 {[%emt 0:01:24]} 2. Nf3 {[%emt 0:00:57]} Nf6 {[%emt 0:00:09][%cal Bg8f6,Bf6d5,Bd5b4][%mdl 32]} 3. e5 {[%emt 0:00:07]} Nd5 {[%emt 0:00:05]} 4. Nc3 {[%emt 0:00:07]} e6 {[%emt 0:00:06]} 5. Ne4 {[%emt 0:00:09]} f5 {[%emt 0:00:29]} 6. Nc3 {[%emt 0:00:02]} Nb4 {[%emt 0:00:08]} 7. a3 {[%emt 0:00:07]} N4c6 {[%emt 0:00:12] [#]} 8. b4 $1 {[%emt 0:00:01]} cxb4 {[%emt 0:01:48] White is slightly better.} (8... b6 9. Nb5) 9. axb4 {[%emt 0:00:04]} Bxb4 {[%emt 0:00:41]} 10. Nb5 {[%emt 0:00:06]} O-O {[%emt 0:08:55]} 11. c3 {[%emt 0:00:03]} Be7 {[%emt 0:00:14]} 12. d4 {[%emt 0:00:02]} Na6 {[%emt 0:02:48]} 13. d5 {[%emt 0:10:44]} exd5 {[%emt 0:00:07]} 14. Qxd5+ {[%emt 0:00:06]} Kh8 {[%emt 0:00:23]} 15. Nd6 {[%emt 0:00:06]} Bxd6 {[%emt 0:00:11]} 16. Qxd6 {[%emt 0:02:57]} Re8 $1 {[%emt 0:05:14] Black is weak on the dark squares} 17. Bc4 {[%emt 0:32:24] White has more active pieces.} (17. Bxa6 $16 {Be2 would now be deadly.} bxa6 18. Bg5) 17... Qf6 {[%emt 0:11:51] [#]} (17... Qc7 $11 {remains equal.} 18. O-O Qxd6 (18... Nxe5 $2 {perishes.} 19. Nxe5 Qxd6 20. Nf7+ Kg8 21. Nxd6+ Re6 22. Be3 $18) 19. exd6 Nc5) 18. Ba3 $1 $36 {[%emt 0:27:48][%mdl 2048] White fights for an advantage.} b5 {[%emt 0:09:02] This costs Black the game.} ({Better is} 18... Nxe5 $14 19. Nxe5 Rxe5+ 20. Kd2 Re6 21. Bxe6 dxe6) 19. Qxf6 $18 {[%emt 0:02:51]} (19. Bxb5 Nxe5 20. O-O Nxf3+ 21. gxf3 Re6 $11) 19... gxf6 {[%emt 0:00:05]} 20. Bf7 {[%emt 0:00:07] This pair of bishops is nice.} ({Inferior is} 20. Bxb5 Nxe5 21. O-O-O Nc7 $11) 20... Rxe5+ {[%emt 0:11:33]} 21. Nxe5 {[%emt 0:02:02]} fxe5 {[%emt 0:00:05]} (21... Nxe5 {was worth a try.} 22. Bd5 Rb8) 22. Bd6 {[%emt 0:00:32]} Bb7 {[%emt 0:00:16]} 23. Rb1 {[%emt 0:00:47]} Rc8 {[%emt 0:02:17]} 24. Rxb5 {[%emt 0:00:38]} Ba8 {[%emt 0:00:06]} 25. Rxe5 {[%emt 0:02:27]} ({Weaker is} 25. Bxe5+ Nxe5 26. Rxe5 Kg7 27. Rxf5 Rf8 $18) 25... Kg7 {[%emt 0:01:33]} 26. Rxf5 {[%emt 0:00:20] Weighted Error Value: White=0.06 (flawless) /Black=0.45.  Mistake:       	White=1     	Black=3      Inaccurate:     	---       	Black=2      OK:         	White=11    	Black=3      Best:        	White=1     	Black=1      Strong:       	White=1     	Black=1} 1-0